Cogmind - Beta 13 @@@ ROGUE MODE // 2024.04.01 @ 16:57:11 Player: tartine Result: Destroyed by KB-UA8(R) with Subdweller Machine Gun Performance ------------- Evolutions (0) 0 Regions Visited (2) 400 Robots Destroyed (15) 75 Value Destroyed (352) 352 Prototype IDs (0) 0 Alien Tech Used (0) 0 Bonus (0) 0 TOTAL SCORE: 827 Bonus ------- None Cogmind --------- Core Integrity 0/250 Matter 176/300 Energy 100/100 System Corruption 0% Temperature Cool (0) Movement Core (350) Ox6 Location -10/Subcaves Parts ------- > --- POWER (1) -------- (None) > --- PROPULSION (2) --- (None) > --- UTILITY (2) ------ Large Storage Unit > --- WEAPON (2) ------- (None) > --- INVENTORY (15) --- Improved Ion Engine Wheel Wheel Structural Scanner Improved Terrain Scanner Seismic Detector Scrap Shield Light EM Pulse Cannon Subdweller Beam Cannon Bore Cannon Peak State ------------ > --- POWER ------------ Improved Ion Engine > --- PROPULSION ------- Myomer Leg Myomer Leg > --- UTILITY ---------- Large Storage Unit Hacking Suite > --- WEAPON ----------- Rocket Launcher Rocket Launcher > --- INVENTORY -------- Improved Ion Engine Wheel Wheel Structural Scanner Improved Terrain Scanner Seismic Detector Light Armor Plating Scrap Shield Light EM Pulse Cannon Bore Cannon [Rating: 26] Favorites ----------- Power Light Ion Engine Engine Light Ion Engine Propulsion Wheel Leg Myomer Leg Wheel Wheel Utility Small Matter Pod Device Improved Terrain Scanner Storage Small Matter Pod Hackware Hacking Suite Protection Light Armor Plating Weapon EM Pulse Gun Energy Gun EM Pulse Gun Energy Cannon Light EM Pulse Cannon Launcher Rocket Launcher Special Melee Weapon Datajack Build | -11 -10 -10 ------- Run | Yrd Mat Sub Slots Evolved . | . . . Power . | . . . Propulsion . | . . . Utility . | . . . Weapon . | . . . Parts Attached 34 | 10 20 4 Power 2 | 1 1 . Engine 2 | 1 1 . Core . | . . . Reactor . | . . . Propulsion 7 | 4 1 2 Treads . | . . . Leg 3 | 1 . 2 Wheel 4 | 3 1 . Hover . | . . . Flight . | . . . Utility 12 | 3 8 1 Device 3 | 2 1 . Storage 7 | 1 6 . Processor . | . . . Hackware 1 | . 1 . Protection 1 | . . 1 Artifact . | . . . Weapon 13 | 2 10 1 Energy Gun 3 | 2 1 . Energy Cannon 3 | . 3 . Ballistic Gun . | . . . Ballistic Cannon . | . . . Launcher 6 | . 5 1 Special Weapon . | . . . Impact Weapon . | . . . Slashing Weapon . | . . . Piercing Weapon . | . . . Special Melee Weapon 1 | . 1 . Unidentified Prototypes . | . . . Parts Lost 7 | . 1 6 Power 1 | . . 1 Propulsion 2 | . . 2 Utility 1 | . . 1 Weapon 3 | . 1 2 Highest Loss Streak 5 | . 1 5 To Critical Strikes . | . . . Average Slot Usage (%) 98 | . 99 95 Engine 13 | . 14 13 Leg 5 | . . 24 Wheel 22 | . 27 2 Device 3 | . 4 . Storage 14 | . 14 14 Hackware 9 | . 8 13 Energy Gun 1 | . 1 . Energy Cannon 10 | . 12 . Launcher 15 | . 12 24 Naked Turns . | . . . Heaviest Build 35 | 9 35 35 Greatest Support 50 | 20 20 50 Greatest Overweight (x) 7 | . 2 7 Average Overweight (x) . | . . . Largest Inventory Capacity 25 | 5 25 15 Average Capacity 9 | 5 12 15 Most Carried 12 | 5 8 12 Average Carried 3 | 1 5 10 Final Capacity 15 | 5 15 15 Final Carried 11 | 3 6 11 Class Distribution -------------------- 100% | Mutant Dominant Class ---------------- Mutant | -10/Materials Mutant | -10/Subcaves Resources | -11 -10 -10 ----------- Run | Yrd Mat Sub Matter Collected 582 | 344 213 25 Remotely . | . . . Salvage Created 247 | 130 117 . Parts 30 | 13 16 1 Haulers Intercepted . | . . . Recyclers Shooed . | . . . Parts Field Recycled . | . . . Retrieved Matter . | . . . Parts Self-Destructed . | . . . Prevented . | . . . Kills | -11 -10 -10 ------- Run | Yrd Mat Sub Combat Hostiles Destroyed 8 | 1 5 2 AOE 8 | 1 5 2 Classes Destroyed 7 | 3 3 1 Worker 1 | 1 . . Tunneler 3 | 3 . . Operator 1 | . 1 . Watcher 2 | . 2 . Swarmer 3 | . 3 . Grunt 3 | 1 2 . Subdweller 2 | . . 2 Best Kill Streak 3 | 2 3 2 Combat Bots Only 3 | 1 3 2 Max Kills in Single Turn 3 | 1 3 2 Gunslinging . | . . . Exploded 3 | 1 3 2 Melee . | . . . Uniques/NPCs Destroyed . | . . . Combat | -11 -10 -10 -------- Run | Yrd Mat Sub Hostile Shots Fired 64 | 7 9 48 Missed 19 | 2 2 15 Damage Taken 945 | 53 70 822 Core 272 | 20 17 235 Absorbed by Shields . | . . . Regen/Repaired (Parts) 14 | . 14 . Core Remaining (%) 92 | 92 . . Volleys Fired 35 | 11 17 7 Largest 2 | 2 2 2 Hottest 89 | 80 89 89 Shots Fired 58 | 22 24 12 Gun 26 | 22 4 . Cannon 15 | . 10 5 Launcher 17 | . 10 7 Special . | . . . Kinetic . | . . . Thermal . | . . . Explosive 17 | . 10 7 Electromagnetic 41 | 22 14 5 Robot Hit Streak 6 | 6 2 4 Robot Miss Streak 3 | 3 1 2 Penetration Max . | . . . Secondary Targets . | . . . Shots Hit Robots 24 | 8 10 6 Core Hits 18 | 5 9 4 Critical Kills . | . . . Critical Parts Destroyed . | . . . Critical Strikes 1 | . . 1 Corrupt 1 | . . 1 Melee Attacks 7 | . 7 . Impact . | . . . Slashing . | . . . Piercing . | . . . Sneak Attacks 4 | . 4 . Combat Hostiles . | . . . Follow-up Attacks . | . . . Damage Inflicted 1045 | 190 385 470 Guns 114 | 114 . . Cannons 169 | . 111 58 Explosions 762 | 76 274 412 Melee . | . . . Ramming . | . . . Kinetic . | . . . Thermal 76 | 76 . . Explosive 686 | . 274 412 Electromagnetic 283 | 114 111 58 Impact . | . . . Slashing . | . . . Piercing . | . . . Highest Corruption . | . . . Average Corruption . | . . . Corruption Purged . | . . . Corruption Blocked . | . . . Overload Shots . | . . . Overflow Damage . | . . . Projectiles . | . . . Explosions . | . . . Melee . | . . . Knockbacks . | . . . Impact . | . . . Kinetic . | . . . Secondary . | . . . Self-Inflicted Damage 46 | . . 46 Shots 2 | . . 2 Rammed . | . . . Targets Rammed . | . . . Kicked . | . . . Crushed . | . . . Highest Temperature 48 | 48 48 . Average Temperature 18 | 21 16 . Received Heat Transfer 117 | 30 24 63 Siege Activations . | . . . Robots Corrupted . | . . . Combat Hostiles . | . . . Parts Fried . | . . . Impact Corruptions . | . . . Robots Melted . | . . . Combat Hostiles . | . . . Parts Melted . | . . . Heat Transferred 150 | 150 . . Parts Sabotaged . | . . . Parts Stolen . | . . . Parts Stripped . | . . . Power Chain Reactions 1 | 1 . . Alert | -11 -10 -10 ------- Run | Yrd Mat Sub Peak Influence 221 | 30 221 . Initial 6 | . 6 . Average 45 | 4 98 . Maximum Alert Level 1 | . 1 . Low Security (%) 99 | 100 98 . Level 1 . | . 1 . Level 2 . | . . . Level 3 . | . . . Level 4 . | . . . Level 5 . | . . . High Security . | . . . Max Security . | . . . Squads Dispatched 3 | . 3 . Investigation 2 | . 2 . Extermination . | . . . Reinforcement 1 | . 1 . Assault . | . . . Garrison . | . . . Intercept . | . . . Searches Triggered . | . . . Construction Impeded . | . . . Haulers Reinforced . | . . . Active Scanning Responses . | . . . Cargo Convoy Interrupts . | . . . Stealth | -11 -10 -10 --------- Run | Yrd Mat Sub Distress Signals . | . . . Communications Jammed . | . . . Distress Signals . | . . . Times Spotted 20 | 1 10 9 Peak Tracking Total 7 | 1 3 7 Tactical Retreats 2 | . 2 . Traps | -11 -10 -10 ------- Run | Yrd Mat Sub Traps Triggered 2 | . 2 . Indirectly . | . . . Trap Hack Attempts . | . . . Triggered . | . . . Disarmed . | . . . Reprogrammed . | . . . Reused . | . . . Traps Extracted . | . . . Installed . | . . . Triggered 4 | . . 4 Machines | -11 -10 -10 ---------- Run | Yrd Mat Sub Machines Disabled 7 | . 7 . Max in Single Turn 3 | . 3 . Machines Repaired . | . . . Machines Dismantled . | . . . Machines Sabotaged . | . . . Overloaded Fab Kills . | . . . Hacking | -11 -10 -10 --------- Run | Yrd Mat Sub Machines Accessed 5 | . 5 . Terminals 3 | . 3 . Fabricators . | . . . Repair Stations 1 | . 1 . Recycling Units 1 | . 1 . Scanalyzers . | . . . Garrison Access . | . . . Total Hacks 25 | . 25 . Successful 17 | . 17 . Failed 8 | . 8 . Catastrophic 3 | . 3 . Database Lockouts . | . . . Manual . | . . . Terminals 16 | . 16 . Fabricators . | . . . Repair Stations 5 | . 5 . Recycling Units 4 | . 4 . Scanalyzers . | . . . Garrison Access . | . . . Terminal Hacks 8 | . 8 . Record 4 | . 4 . Emergency Access Points 2 | . 2 . Dispatch Records 1 | . 1 . Maintenance Status 1 | . 1 . Fabricator Hacks . | . . . Repair Station Hacks 5 | . 5 . Scan Component 3 | . 3 . Repair 2 | . 2 . Recycling Unit Hacks 4 | . 4 . Recycle Component 1 | . 1 . Process 1 | . 1 . Report Inventory 1 | . 1 . Retrieve Matter 1 | . 1 . Scanalyzer . | . . . Garrison Access Hacks . | . . . Unauthorized Hacks . | . . . Terminals . | . . . Fabricators . | . . . Repair Stations . | . . . Recycling Units . | . . . Scanalyzers . | . . . Garrison Access . | . . . Data Cores Recovered . | . . . Used . | . . . Hacking Detections 4 | . 4 . Full Trace Events 3 | . 3 . Feedback Events . | . . . Feedback Blocked . | . . . Robot Schematics Acquired . | . . . Robots Built . | . . . Authchips . | . . . Time . | . . . Total Robot Build Rating . | . . . Part Schematics Acquired . | . . . Parts Built . | . . . Authchips . | . . . Time . | . . . Total Part Build Rating . | . . . Parts Repaired 2 | . 2 . Time 52 | . 52 . Parts Recycled 1 | . 1 . Recycled Matter 344 | . 344 . Retrieved Matter . | . . . Retrieved Components . | . . . Parts Scanalyzed . | . . . Part Schematics Acquired . | . . . Parts Damaged . | . . . Bothacking | -11 -10 -10 ------------ Run | Yrd Mat Sub Used RIF Installer . | . . . Robots Hacked 3 | . 3 . Non-combat 3 | . 3 . Combat . | . . . Robot Hacks Applied 5 | . 5 . parse_system 3 | . 3 . no_distress 2 | . 2 . Relay Couplers Released . | . . . Fabnet Peak Effective % . | . . . Robots Rewired . | . . . Allies Hacked . | . . . Hacks Repelled . | . . . Allies | -11 -10 -10 -------- Run | Yrd Mat Sub Total Allies . | . . . Largest Group . | . . . Highest-Rated Group . | . . . Highest-Rated Ally . | . . . Total Orders . | . . . Ally Attacks . | . . . Total Damage . | . . . Kills . | . . . Allies Corrupted . | . . . Allies Melted . | . . . Intel | -11 -10 -10 ------- Run | Yrd Mat Sub Robot Analysis Total . | . . . Derelict Logs Recovered 2 | . . 2 Drone Launches . | . . . Drone Recoveries . | . . . Exploration | -11 -10 -10 ------------- Run | Yrd Mat Sub Turns Passed 4539 | 2272 1769 498 Spaces Moved 1462 | 617 633 212 Core 47 | 45 . 2 Treads . | . . . Legs 186 | . . 186 Wheels 1229 | 572 633 24 Hover . | . . . Flight . | . . . Fastest Speed 50 | 50 80 95 Average Speed 90 | 77 92 119 Slowest Speed 400 | 80 110 400 Overloaded Moves . | . . . Propulsion Burnouts . | . . . Robots Hopped . | . . . Cave-ins Triggered . | . . . Exploration Rate (%) 38 | 37 62 15 Regions Visited 2 Branch Regions 1 Pre-discovered Areas 1 | . . 1 Known Exits Taken . | . . . Unknown Exits Taken 2 | 1 1 . Scrap Searched 1 | . . 1 Spaces Dug 8 | . 8 . Terrain Destroyed 197 | . 146 51 Melee . | . . . Projectile . | . . . AOE 197 | . 146 51 Terrain Rammed . | . . . Walls Destroyed . | . . . Machines Disabled . | . . . Actions | -11 -10 -10 --------- Run | Yrd Mat Sub Total 4618 | 2388 1788 442 Wait 3032 | 1735 1083 214 Move 1460 | 616 632 212 Hop . | . . . Pick Up 35 | 12 18 5 Fast Attach . | . . . Attach 19 | 9 10 . Detach 5 | 2 3 . Swap 15 | 1 10 4 Drop 10 | 2 8 . Fire 35 | 11 17 7 Melee 7 | . 7 . Ram . | . . . Kick . | . . . Crush . | . . . Escape Stasis . | . . . Rewire . | . . . Trap . | . . . Miscellaneous . | . . . Route ------- -11/Scrapyard -10/Materials (discovered 3 exits: [*Mat x2] / [*Sub]) -10/Subcaves (discovered 1 exit: Mat) History --------- Turn | Location | Event 2 | -11/Scrapyard | Met Revision 17 76 | -11/Scrapyard | Discovered new exit (range 8) 2273 | -11/Scrapyard | Entered Materials 2274 | -10/Materials | Build established: Mutant 2826 | -10/Materials | Repaired Wheel 2852 | -10/Materials | Repaired Seismic Detector 2870 | -10/Materials | Discovered new exit (range 14) 3014 | -10/Materials | Discovered new exit (range 16) 3422 | -10/Materials | Discovered new exit (range 4) 4042 | -10/Materials | Entered Subcaves 4060 | -10/Subcaves | Identified exit to Materials 4096 | -10/Subcaves | Learned Materials stockpile data 4097 | -10/Subcaves | Learned location of Zion (-7) 4097 | -10/Subcaves | Met a Zionite searching for "candidates" 4461 | -10/Subcaves | Ambushed by swarm of Subdwellers 4483 | -10/Subcaves | Ambushed by Subdweller buried in earth 4484 | -10/Subcaves | Core integrity fell below 50% 4534 | -10/Subcaves | Core integrity fell below 20% 4540 | -10/Subcaves | Destroyed by KB-UA8(R) with Subdweller Machine Gun Last Messages --------------- XB-FIB(z) toys with the Twisted Machinery. S4-XHW(u) builds Twisted Machinery. XB-FIB(z) examines a few pieces of the Twisted Machinery. S4-XHW(u) builds Twisted Machinery. XB-FIB(z) plays with the Twisted Machinery. 40-R9Z(z) pokes at the Twisted Machinery. XB-FIB(z) fiddles with the Twisted Machinery. Subatomizers dissect the Sub. Monowheel. RQ-PKR(u) tweaks Twisted Machinery. Acquired Sub. Beam Cannon. Rocket Launcher destroyed. I1-YFB(R): "NAT20!" Q9-D3L(R) emerges from concealment. Imp. Ion Engine destroyed. Rocket Launcher destroyed. Myomer Leg destroyed. Discarded Hacking Suite. Lgt. Armor Plating destroyed. [Achievement: First Step to Greatness] Map ----- +----------------------------------------------------+ | ???????????????????? ##??????????????? | | ?????????????????????? #??????????????? | | ??????????????????????## #??????????????? | | ??????????????????????# #??????????????? | | ????????????????????????# #??????????????? | | ????????????????????????#"" ##??????????????? | | ????????????????????????#"" #???????????????? | | ????????????????????????#"" ###?????????????? | | ????????????????????????#""[ #?????????????? | | ???????????????????????###" ##?????????????? | | ??????????????????????## #??????????????? | | ??????????????????????# #??????????????? | | ??????????????????????# #??????????????? | | ??????????????????????# ###??????????????? | | ??????????????????????# "##???????????????? | | ??????????????????????# "#???????????????? | | ??????????????????????## "#???????????????? | | ???????????????????????#" "##???????????????? | | ???????????????????????## "#????????????????? | | ???????????????##?????## "#????????????????? | | ??????????????## ###### #????????????????? | | ??????????????# ## #????????????????? | | ???????????????# ## ##????????????????? | | ???#???????????## #######?????????????????? | | ??## ?????????## ##;##????????????????????? | | ### ???????### ###@##???????????????????? | | ??##### ##R #???????????????????? | | ### ##RR#???????????????????? | | R #???????????????????? | | # ## #???????????????????? | | # ### ### #???????????????????? | | ????##### ## R#???????????????????? | | ????????# ## #; ##??????????????????? | | ????????# #### ### ##?????????????????? | | ????????# ######??## ### ##????????????????? | | ????????# ######???## ##???????????????? | | ????????## ## #?##### #???????????????? | | ?????????# ### ###### #??????????????? | | ?????????# ##??## #?????????????? | | ?????###### ## ##??#######?????????????? | | ?????# ## ##### ##?????????????????????? | | ??????# ##??## #?????????????????????? | | ???????# #???# #?????????????????????? | | ???????## ###?# ##????????????????????? | | ????????## #### #????????????????????? | | ?????????# #?# ###????????????????????? | | ????????## ### #??????????????????????? | | ?????#### ## ##?????????????????????? | | ?????# #?????????????????????? | | ??????# #????????????????????? | +----------------------------------------------------+ Best States ------------- Heat Dissipation 25 Energy Generation 12 Energy Capacity 265 Matter Stores 350 Matter Capacity 350 Sight Range 16 Terrain Scan Range 16 Terrain Scan Density 10 Evasion (%) 55 Offensive Hacking 10 Item Schematics ----------------- None Robot Schematics ------------------ None Fabricated ------------ Nothing Alien Tech Used ----------------- None Achievements -------------- First Step to Greatness One Hack Too Far Part-time Mechanic Uninvited Guest Challenges ------------ None Game ------ Seed WaveMolecularMaul Manual? 0 Play Time 01:02:47 Cumulative 1.0 hours Start 2024.04.01 @ 15:38:16 End 2024.04.01 @ 16:57:11 Sessions 2 Manual Loads 0 Difficulty Rogue Special Mode None Game No. 1 Rogue 1 Adventurer 0 Explorer 0 Win Type - Total 0 Types 0/0/0/0/0/0/0/0/0 Lore% 0 Gallery% 2 Achievement% 1 Wizard Run 0 Options --------- Layout 1 ASCII 0 Keyboard 0 Movement Mouse Keybinds 0 Fullscreen 1 Font 24/Smallcaps Map View 50x35 Zoom Use 1% Tactical HUD 0 Map Filters NONE Filters NONE Steam 1 RUN: c535e2c7-0ef2-49fa-87ba-ccd2ad53dd2f